{"text_format":"3","workbook":"xlsx","n_sheets":3,"sheets":["Sheet1","Sheet2","Sheet3"],"not_rendered":{"comments":1},"read":"whole","date_system":"1900"}

{"sheet":"Sheet1","index":0,"n_rows":37,"n_cols":14,"rows_kept":37,"merged":[[1,1,1,13],[2,0,2,6],[3,0,4,0],[3,1,4,1],[3,2,4,2],[3,3,3,5],[3,6,4,6],[3,7,4,7],[3,8,4,8],[3,9,4,9],[3,10,4,10],[3,11,4,11],[3,12,4,12],[3,13,4,13],[36,0,36,2]]}
[]
[null,"2020年通山县第一中学、通山县职教中心、通山县特殊教育学校急需、紧缺专业       公 开 招 聘 岗 位 表"]
[]
["主管部门","用人单位","岗位代码","岗位类别及人数",null,null,"招聘岗位名称","岗位描述","岗位所需专业","学历要求","年龄要求","工作经历要求","岗位其它要求","备注"]
[{"$nulls":3},"专业技术岗位","管理岗位","工勤岗位 "]
["通山县教育局","通山一中","A01",2,null,null,"高中语文教师",{"$f":"MID(G6,1,4)&\"教学\"","v":"高中语文教学"},"教育学类、中国汉语言文学及文秘类、新闻传播学类","“双一流”高校普通全日制本科毕业生或以上学历（师范类普通全日制本科放宽至普通高等院校），学士及以上学位","35周岁及以下"]
["通山县教育局","通山一中","A02",1,null,null,"高中生物教师",{"$f":"MID(G7,1,4)&\"教学\"","v":"高中生物教学"},"生物科学及技术类、植物生产及技术类","“双一流”高校普通全日制本科毕业生或以上学历（师范类普通全日制本科放宽至普通高等院校），学士及以上学位","35周岁及以下"]
["通山县教育局","通山一中","A03",1,null,null,"高中物理教师","高中物理教学","物理学类、电气工程及电子信息类","“双一流”高校普通全日制本科毕业生或以上学历（师范类普通全日制本科放宽至普通高等院校），学士及以上学位","35周岁及以下"]
["通山县教育局","通山一中","A04",1,null,null,"高中历史教师","高中历史教学","历史学类","“双一流”高校普通全日制本科毕业生或以上学历（师范类普通全日制本科放宽至普通高等院校），学士及以上学位","35周岁及以下"]
["通山县教育局","通山一中","A05",1,null,null,"高中地理教师","高中地理教学","地理科学类","“双一流”高校普通全日制本科毕业生或以上学历（师范类普通全日制本科放宽至普通高等院校），学士及以上学位","35周岁及以下"]
["通山县教育局","通山县职业教育中心","B01",4,null,null,"高中语文教师","高中语文教学","中国汉语言文学及文秘类","一批院校普通全日制本科及以上，学士及以上学位（师范类普通全日制本科放宽至普通院校）","35周岁及以下"]
["通山县教育局","通山县职业教育中心","B02",2,null,null,"高中数学教师","高中数学教学","数学类、物理学类、化学类","一批院校普通全日制本科及以上，学士及以上学位（师范类普通全日制本科放宽至普通院校）","35周岁及以下"]
["通山县教育局","通山县职业教育中心","B03",3,null,null,"高中英语教师","高中英语教学","  外国语言文学类","一批院校普通全日制本科及以上，学士及以上学位（师范类普通全日制本科放宽至普通院校）","35周岁及以下"]
["通山县教育局","通山县职业教育中心","B04",3,null,null,"高中物理教师","高中物理教学","数学类、物理学类、化学类","一批院校普通全日制本科及以上，学士及以上学位（师范类普通全日制本科放宽至普通院校）","35周岁及以下"]
["通山县教育局","通山县职业教育中心","B05",1,null,null,"高中化学教师","高中化学教学","物理学类、化学类、生物科学及技术类","一批院校普通全日制本科及以上，学士及以上学位（师范类普通全日制本科放宽至普通院校）","35周岁及以下"]
["通山县教育局","通山县职业教育中心","B06",2,null,null,"高中生物教师","高中生物教学","物理学类、化学类、生物科学及技术类、临床医学与医学技术类","一批院校普通全日制本科及以上，学士及以上学位（师范类普通全日制本科放宽至普通院校）","35周岁及以下"]
["通山县教育局","通山县职业教育中心","B07",3,null,null,"高中政治教师","高中政治教学","政治学类、马克思主义理论类、哲学类","一批院校普通全日制本科及以上，学士及以上学位（师范类普通全日制本科放宽至普通院校）","35周岁及以下"]
["通山县教育局","通山县职业教育中心","B08",1,null,null,"高中历史教师","高中历史教学","历史学类","一批院校普通全日制本科及以上，学士及以上学位（师范类普通全日制本科放宽至普通院校）","35周岁及以下"]
["通山县教育局","通山县职业教育中心","B09",2,null,null,"高中地理教师","高中地理教学","地理科学类、地质学和地球物理学类、天文学类","一批院校普通全日制本科及以上，学士及以上学位（师范类普通全日制本科放宽至普通院校）","35周岁及以下"]
["通山县教育局","通山县职业教育中心","B10",4,null,null,"中职语文教师","中职语文教学","专业不限","一批院校普通全日制本科及以上，学士及以上学位（师范类普通全日制本科放宽至普通院校）","35周岁及以下"]
["通山县教育局","通山县职业教育中心","B11",5,null,null,"中职数学教师","中职数学教学","专业不限","一批院校普通全日制本科及以上，学士及以上学位（师范类普通全日制本科放宽至普通院校）","35周岁及以下"]
["通山县教育局","通山县职业教育中心","B12",1,null,null,"高中体育教师","高中体育教学","体育学类","一批院校普通全日制本科及以上，学士及以上学位（师范类普通全日制本科放宽至普通院校）","35周岁及以下",null,"足、篮、排三大球至少一项有特长，并能胜任足球教学工作"]
["通山县教育局","通山县职业教育中心","B13",1,null,null,"高中音乐教师","高中音乐教学","艺术类","一批院校普通全日制本科及以上，学士及以上学位（师范类普通全日制本科放宽至普通院校）","35周岁及以下"]
["通山县教育局","通山县职业教育中心","B14",1,null,null,"高中美术教师","高中美术教学","艺术类","一批院校普通全日制本科及以上，学士及以上学位（师范类普通全日制本科放宽至普通院校）","35周岁及以下"]
["通山县教育局","通山县职业教育中心","B15",1,null,null,"高中信息技术教师","高中信息教学","计算机科学与技术类","一批院校普通全日制本科及以上，学士及以上学位（师范类普通全日制本科放宽至普通院校）","35周岁及以下"]
["通山县教育局","通山县职业教育中心","B16",1,null,null,"高中心理健康教师","高中心理教学","教育学类、心理学类","一批院校普通全日制本科及以上，学士及以上学位（师范类普通全日制本科放宽至普通院校）","35周岁及以下"]
["通山县教育局","通山县职业教育中心","B17",3,null,null,"中职计算机教师","中职计算教学","计算机科学与技术类","一批院校普通全日制本科及以上，学士及以上学位（师范类普通全日制本科放宽至普通院校）","35周岁及以下"]
["通山县教育局","通山县职业教育中心","B18",1,null,null,"中职教育学或心理学教师","中职教育教学","教育学类、心理学类","一批院校普通全日制本科及以上，学士及以上学位（师范类普通全日制本科放宽至普通院校）","35周岁及以下"]
["通山县教育局","通山县职业教育中心","B19",1,null,null,"中职舞蹈教师","中职舞蹈教学","艺术类","一批院校普通全日制本科及以上，学士及以上学位（师范类普通全日制本科放宽至普通院校）","35周岁及以下"]
["通山县教育局","通山县职业教育中心","B20",4,null,null,"中职电子商务教师","中职电子教学","管理类、经济学类、职业技术教育类","一批院校普通全日制本科及以上，学士及以上学位（师范类普通全日制本科放宽至普通院校）","35周岁及以下"]
["通山县教育局","通山县职业教育中心","B21",1,null,null,"中职园林技术教师","中职园林教学","植物生产及技术类、林学和林业工程类、职业技术教育类","一批院校普通全日制本科及以上，学士及以上学位（师范类普通全日制本科放宽至普通院校）","35周岁及以下"]
["通山县教育局","通山县职业教育中心","B22",1,null,null,"中职会计教师","中职会计教学","会计与审计类、经济学类、职业技术教育类","一批院校普通全日制本科及以上，学士及以上学位（师范类普通全日制本科放宽至普通院校）","35周岁及以下"]
["通山县教育局","通山县职业教育中心","B23",2,null,null,"中职机械教师","中职机械教学","机械设计与制造类、电气工程及电子信息类、职业技术教育类","一批院校普通全日制本科及以上，学士及以上学位（师范类普通全日制本科放宽至普通院校）","35周岁及以下"]
["通山县教育局","通山县职业教育中心","B24",1,null,null,"中职体育教师","中职体育教学","体育学类","一批院校普通全日制本科及以上，学士及以上学位（师范类普通全日制本科放宽至普通院校）","35周岁及以下",null,"足、篮、排三大球至少一项有特长，并能胜任足球教学工作"]
["通山县教育局","通山县职业教育中心","B25",2,null,null,"中职旅游管理教师","中职旅游教学","管理类、经济学类、职业技术教育类","一批院校普通全日制本科及以上，学士及以上学位（师范类普通全日制本科放宽至普通院校）","35周岁及以下"]
["通山县教育局","通山县特殊教育学校","C01",3,null,null,"特教教师","特殊教育教学","特殊教育类","普通全日制专科及以上","35周岁及以下"]
["合计",null,null,{"$f":"SUM(D6:D36)","v":60}]

{"sheet":"Sheet2","index":1,"n_rows":0,"n_cols":0,"rows_kept":0}

{"sheet":"Sheet3","index":2,"n_rows":0,"n_cols":0,"rows_kept":0}